bitfinex/quotes_ETHUSD_20250715
["timestamp","ask_amount","ask_price","bid_price","bid_amount"]
[1752573439818,3.36387455,2972.8,2972.6,0.7837]
[1752573439979,8.52194523,2972.7,2972.6,0.7837]
[1752573440306,5.158,2972.7,2972.5,0.4615]
[1752573440497,5.158,2972.7,2972.6,0.4615]
[1752573441095,8.52194523,2972.7,2972.6,0.4615]
[1752573441495,5.158,2972.7,2972.6,0.4615]
[1752573441673,8.52194523,2972.7,2972.6,0.4615]
[1752573441869,5.158,2972.7,2972.6,0.4615]
[1752573442075,0.4505,2973.6,2972.7,0.7837]
[1752573442297,3.36394523,2972.7,2972.6,0.4615]
[1752573442516,8.51994523,2972.7,2972.6,0.4615]
[1752573442814,5.156,2972.7,2972.6,0.4615]
[1752573445623,5.156,2972.7,2972.5,0.7837]
[1752573445926,5.156,2972.7,2972.5,1.2452]
[1752573445927,3.3640584,2972.6,2972.5,1.2452]
[1752573446213,3.36424786,2972.5,2972.3,0.7873]
[1752573446417,5.155,2972.4,2972.3,1.2488]
[1752573446602,5.155,2972.4,2972.3,0.7873]
[1752573447320,5.155,2972.4,2972.3,1.2488]
[1752573448214,5.155,2972.4,2972.1,0.00100001]
[1752573448215,8.51928475,2972.4,2972.1,0.78670001]
[1752573448377,8.51928475,2972.4,2972.2,0.4615]
[1752573448902,0.168,2972.3,2972.2,0.4615]
[1752573449502,3.53239794,2972.3,2972.2,0.4615]
[1752573449702,0.168,2972.3,2972.2,0.4615]
[1752573449911,3.53239794,2972.3,2972.2,0.4615]
[1752573450206,3.53239794,2972.3,2972.1,0.78670001]
[1752573450404,5.154,2972.2,2972.1,0.78670001]
[1752573450609,5.154,2972.2,2972.1,1.22280001]
[1752573454219,5.318,2972.3,2972.2,10.0]
[1752573454424,5.15,2972.3,2972.2,1.2376]
[1752573454800,5.15,2972.3,2972.2,14.60211113]
[1752573455118,5.15,2972.3,2972.2,11.2376]
[1752573455283,5.15,2972.3,2972.2,1.2376]
[1752573455925,8.51446012,2972.3,2972.1,0.00100001]
[1752573456091,3.53251113,2972.2,2972.1,0.00100001]
[1752573456688,3.96011113,2972.2,2972.1,0.00100001]
[1752573457222,3.53251113,2972.2,2972.1,0.00100001]
[1752573457444,8.68251113,2972.2,2972.1,0.00100001]
[1752573458186,5.318,2972.2,2972.1,0.00100001]
[1752573458517,0.168,2972.2,2972.1,1.24880001]
[1752573458749,5.317,2972.2,2972.1,1.24880001]
[1752573459158,5.317,2972.2,2972.1,0.81270001]
[1752573459455,5.317,2972.2,2972.1,0.00100001]
[1752573460377,5.317,2972.2,2972.1,0.43710001]
[1752573460931,5.315,2972.2,2972.1,0.43710001]
[1752573461524,0.168,2972.2,2972.1,0.00100001]
[1752573461742,5.315,2972.2,2972.1,0.43710001]
[1752573461990,5.146,2972.2,2972.1,0.43710001]
[1752573462122,5.146,2972.2,2972.1,14.59622434]
[1752573462325,5.146,2972.2,2972.1,11.23160001]
[1752573463265,5.146,2972.2,2972.1,14.59622434]
[1752573463800,0.168,2972.4,2972.3,0.785]
[1752573463925,5.314,2972.4,2972.3,4.14939794]
[1752573464126,5.314,2972.4,2972.3,4.58549794]
[1752573465077,5.146,2972.4,2972.3,4.58549794]
[1752573465234,0.002,2972.5,2972.4,3.36428475]
[1752573465423,5.147,2972.5,2972.4,3.80038475]
[1752573465629,0.002,2972.5,2972.4,3.80038475]
[1752573465942,5.147,2972.5,2972.4,3.80038475]
[1752573467508,5.145,2972.5,2972.4,13.80038475]
[1752573467624,0.002,2972.5,2972.4,13.80038475]
[1752573467955,0.002,2972.5,2972.4,15.33968475]
[1752573468846,0.002,2972.5,2972.4,15.59022826]
[1752573470942,0.002,2972.5,2972.4,15.33968475]
[1752573474373,0.002,2972.5,2972.4,10.168]
[1752573474576,0.002,2972.5,2972.4,10.0]
[1752573474959,0.002,2972.5,2972.4,10.4361]
[1752573475140,0.002,2972.5,2972.4,14.57138475]
[1752573476878,0.002,2972.5,2972.4,10.771]
[1752573477055,0.002,2972.5,2972.4,11.2071]
[1752573478467,0.002,2972.5,2972.4,10.4361]
[1752573478668,0.002,2972.5,2972.4,10.0]
[1752573481798,0.002,2972.5,2972.4,10.4405]
[1752573482382,0.002,2972.5,2972.2,0.7789]
[1752573482592,0.002,2972.5,2972.2,10.7789]
[1752573482854,0.002,2972.5,2972.1,0.00100001]
[1752573483178,0.168,2972.4,2972.2,0.4405]
[1752573483888,5.133,2972.3,2972.2,0.4405]
[1752573484707,5.133,2972.3,2972.1,0.00100001]
[1752573484885,5.5736,2972.3,2972.1,0.00100001]
[1752573485194,0.168,2972.2,2972.1,0.00100001]
[1752573487696,0.168,2972.2,2972.1,0.44150001]
[1752573487897,5.3,2972.2,2972.1,4.55632434]
[1752573488401,5.132,2972.2,2972.1,4.55632434]
[1752573488899,5.132,2972.2,2972.1,14.55632434]
[1752573489288,5.132,2972.2,2972.1,11.19170001]
[1752573489785,5.132,2972.2,2972.1,14.55632434]
[1752573494401,5.132,2972.2,2972.1,11.19170001]
[1752573494979,5.132,2972.2,2972.1,10.00100001]
[1752573495181,5.5726,2972.2,2972.1,0.00100001]
[1752573495377,9.10511113,2972.2,2972.1,0.00100001]
[1752573495789,5.7406,2972.2,2972.1,0.00100001]
[1752573496536,5.3,2972.2,2972.1,0.00100001]
[1752573499328,5.7406,2972.2,2972.1,0.00100001]
[1752573500842,9.10511113,2972.2,2972.1,0.00100001]
[1752573501050,5.7406,2972.2,2972.1,0.00100001]
[1752573501401,5.3,2972.2,2972.1,0.00100001]
[1752573501601,0.168,2972.2,2972.1,4.13952434]
[1752573501818,0.17,2972.5,2972.2,3.36448372]
[1752573502014,5.127,2972.4,2972.2,3.80498372]
[1752573502438,5.127,2972.4,2972.2,3.80495698]
[1752573502941,5.127,2972.4,2972.3,3.80489794]
[1752573503112,0.002,2972.5,2972.4,3.36428475]
[1752573503436,5.13,2972.5,2972.4,3.80478475]
[1752573504533,5.13,2972.5,2972.4,13.59015727]
[1752573504707,5.13,2972.5,2972.4,23.59015727]
[1752573505057,5.13,2972.5,2972.4,13.80478475]
[1752573506743,5.13,2972.5,2972.4,13.36428475]
[1752573507148,5.13,2972.5,2972.4,13.80478475]
[1752573509530,5.13,2972.5,2972.4,14.83891816]
[1752573511747,0.002,2972.5,2972.4,15.38891816]
[1752573513849,0.002,2972.5,2972.4,13.36428475]
[1752573514552,0.002,2972.5,2972.4,10.0]
[1752573515031,0.002,2972.5,2972.4,13.36428475]
[1752573516522,0.002,2972.5,2972.4,14.08323637]
[1752573517557,0.002,2972.5,2972.4,10.25155162]
[1752573518855,0.002,2972.5,2972.4,13.61583637]
[1752573521439,0.002,2972.5,2972.4,14.08323637]
[1752573521642,0.002,2972.5,2972.4,13.61583637]
[1752573522141,0.002,2972.5,2972.4,10.25155162]
[1752573522882,0.002,2972.5,2972.4,13.61583637]
[1752573523539,0.002,2972.5,2972.4,10.25155162]
[1752573524178,0.002,2972.5,2972.4,13.61583637]
[1752573524340,0.002,2972.5,2972.4,10.25155162]
[1752573525189,0.002,2972.5,2972.4,13.61583637]
[1752573527905,0.002,2972.5,2972.4,10.25155162]
[1752573530524,0.002,2972.5,2972.4,10.0]
[1752573531905,0.002,2972.5,2972.4,13.36428475]
[1752573532898,0.002,2972.5,2972.4,13.83168475]
[1752573533457,0.002,2972.5,2972.4,13.36428475]
[1752573535407,0.002,2972.5,2972.4,10.0]
[1752573535592,0.002,2972.5,2972.4,13.36428475]
[1752573537143,0.002,2972.5,2972.4,10.0]
[1752573537310,0.002,2972.5,2972.4,13.36428475]
[1752573537751,0.002,2972.5,2972.4,10.0]
[1752573540109,0.4364,2972.5,2972.4,10.0]
[1752573541199,0.002,2972.5,2972.4,13.36428475]
[1752573541605,0.002,2972.5,2972.4,14.60048475]
[1752573542037,0.002,2972.5,2972.4,15.15048475]
[1752573542232,0.002,2972.5,2972.4,15.31848475]
[1752573542841,0.002,2972.5,2972.4,15.57220646]
[1752573545408,0.002,2972.5,2972.4,20.68320646]
[1752573550428,0.002,2972.5,2972.4,25.44320646]
[1752573550758,5.11,2973.4,2973.3,3.36326041]
[1752573551652,5.11,2973.4,2973.3,9.88453717]
[1752573551855,0.168,2973.5,2973.4,3.36315329]
[1752573552057,5.112,2973.7,2973.5,3.3629653]
[1752573552432,5.5464,2973.7,2973.5,3.36304018]
[1752573552797,5.5464,2973.7,2973.6,10.31750385]
[1752573552798,0.002,2973.7,2973.6,10.31750385]
[1752573552966,0.002,2973.7,2973.6,9.88420385]
[1752573553528,0.002,2973.7,2973.6,10.31750385]
[1752573554387,0.002,2973.7,2973.6,9.88420385]
[1752573554689,0.002,2973.7,2973.6,3.36292709]
[1752573555038,0.002,2973.7,2973.5,13.36301865]
[1752573555371,0.002,2973.7,2973.5,3.36301865]
[1752573555535,0.002,2973.7,2973.4,11.2424]
[1752573555536,0.002,2973.7,2973.6,3.36292709]
[1752573558986,0.002,2973.7,2973.6,20.31750385]
[1752573560440,0.002,2973.7,2973.6,20.86750385]
[1752573560679,0.002,2973.7,2973.6,21.03550385]
[1752573571255,0.002,2973.7,2973.6,21.80710385]
[1752573571667,0.002,2973.7,2973.6,26.91510385]
[1752573580206,0.002,2973.7,2973.6,21.80710385]
[1752573580514,0.002,2973.7,2973.6,26.91510385]
[1752573582012,0.002,2973.7,2973.6,21.80710385]
[1752573582209,0.002,2973.7,2973.6,26.91410385]
[1752573582920,0.002,2973.7,2973.6,21.80710385]
[1752573583101,0.002,2973.7,2973.6,26.91410385]
[1752573584512,0.002,2973.7,2973.6,21.80710385]
[1752573584808,0.002,2973.7,2973.6,26.91410385]
[1752573586412,0.002,2973.7,2973.6,20.60220385]
[1752573586573,0.002,2973.7,2973.6,14.08092709]
[1752573586779,0.002,2973.7,2973.6,19.18792709]
[1752573588678,0.002,2973.7,2973.6,19.63562709]
[1752573589126,0.002,2973.7,2973.6,19.18792709]
[1752573590720,0.4616,2973.7,2973.6,14.08092709]
[1752573596440,0.002,2973.7,2973.6,14.08092709]
[1752573601338,0.4736,2973.7,2973.6,14.08092709]
[1752573602472,1.2482,2973.7,2973.1,11.28127676]
[1752573602763,0.4716,2973.6,2973.4,10.0]
[1752573602922,0.4716,2973.6,2973.3,3.3632664]
[1752573602923,0.4716,2973.6,2973.3,10.0]
[1752573603325,0.4716,2973.6,2973.3,3.3632594]
[1752573603538,0.7715,2973.5,2973.2,10.168]
[1752573603733,0.4716,2973.4,2973.2,13.53135424]
[1752573605765,0.4716,2973.3,2972.7,10.0]
[1752573605922,0.976,2973.2,2972.7,0.168]
[1752573606122,0.976,2973.2,2972.7,3.53192328]
[1752573606123,0.4716,2973.1,2972.7,3.53192328]
[1752573606461,0.976,2973.2,2973.0,10.0]
[1752573606967,1.4476,2973.2,2972.9,9.8849611]
[1752573607160,0.976,2973.2,2972.9,9.8849611]
[1752573607324,0.4716,2973.1,2973.0,3.36360578]
[1752573607667,0.976,2973.2,2973.1,13.36349265]
[1752573608173,1.4476,2973.2,2973.1,13.36349265]
[1752573608669,1.2796,2973.2,2973.1,13.36349265]
[1752573608824,1.2796,2973.2,2973.1,13.53149265]
[1752573611139,1.2753,2973.2,2973.0,3.36357489]
[1752573611367,0.4716,2973.1,2973.0,3.36357489]
[1752573611883,0.8037,2973.2,2973.1,3.36349265]
[1752573612291,0.002,2973.9,2973.5,3.36304018]
[1752573612292,0.8233,2973.6,2973.5,3.36304018]
[1752573612592,1.2949,2973.6,2973.5,3.36304018]
[1752573613651,0.002,2973.7,2973.6,3.36292709]
[1752573613884,0.002,2973.7,2973.6,13.39655636]
[1752573614082,0.002,2973.7,2973.6,13.91292709]
[1752573615078,0.002,2973.7,2973.6,14.34272709]
[1752573618796,0.002,2973.9,2973.8,3.36270092]
[1752573618957,0.002,2973.9,2973.8,19.88397768]
[1752573619298,0.002,2973.9,2973.8,20.48177768]
[1752573619656,0.002,2973.9,2973.8,13.53070092]
[1752573619859,0.002,2973.9,2973.8,14.51050092]
[1752573620092,0.002,2973.9,2973.8,21.03177768]
[1752573621173,0.4736,2973.9,2973.8,13.53070092]
[1752573621372,1.29,2973.9,2973.2,3.36337952]
[1752573621696,1.29,2973.9,2972.9,0.8146]
[1752573621697,5.5776,2973.8,2973.6,0.168]
[1752573621903,0.8164,2973.7,2973.5,3.36298665]
[1752573622108,1.288,2973.7,2973.5,3.36298665]
[1752573622280,0.4716,2973.6,2973.5,3.36298665]
[1752573623712,5.5776,2973.6,2973.5,3.36298665]
[1752573624590,5.106,2973.6,2973.5,3.91298665]
[1752573624770,5.106,2973.6,2973.5,14.51078665]
[1752573624979,5.106,2973.6,2973.5,14.08098665]
[1752573625610,5.8961,2973.6,2973.5,13.53098665]
[1752573625810,6.3677,2973.6,2973.5,13.36298665]
[1752573626213,6.3677,2973.6,2973.5,10.0]
[1752573627216,6.3677,2973.6,2973.5,13.36304018]
[1752573628217,6.3677,2973.6,2973.5,3.36304018]
[1752573628922,0.8038,2973.8,2973.5,3.36302414]
[1752573629121,5.106,2973.6,2973.5,3.36302414]
[1752573630095,5.5663,2973.6,2973.5,3.36302414]
[1752573630290,5.106,2973.6,2973.5,3.36302414]
[1752573631023,5.5663,2973.6,2973.5,3.36302414]
[1752573632309,5.106,2973.6,2973.5,3.36302414]
[1752573632712,5.5663,2973.6,2973.5,3.36302414]
[1752573633784,0.4603,2973.6,2973.5,3.36302414]
[1752573633984,5.5663,2973.6,2973.5,3.36302414]
[1752573636522,0.4603,2973.6,2973.5,3.36302414]
[1752573636679,0.4603,2973.6,2973.5,3.36304018]
[1752573636885,5.5663,2973.6,2973.5,3.36304018]
[1752573637118,0.8038,2973.8,2973.7,3.362814]
[1752573637330,6.3701,2973.8,2973.7,3.362814]
[1752573638439,5.9098,2973.8,2973.7,3.362814]
[1752573638589,5.106,2973.8,2973.7,3.362814]
[1752573638789,0.002,2973.9,2973.7,3.362814]
[1752573638790,0.002,2973.9,2973.8,3.36270092]
[1752573639036,0.002,2973.9,2973.8,3.83130092]
[1752573639244,5.108,2973.9,2973.8,13.83130092]
[1752573639469,5.108,2973.9,2973.8,13.36270092]
[1752573643274,5.5683,2973.9,2973.8,13.36270092]
[1752573644321,5.108,2973.9,2973.8,13.36270092]
[1752573646267,5.108,2973.9,2973.8,13.53070092]
[1752573647461,0.002,2973.9,2973.8,13.99930092]
[1752573647632,5.108,2973.9,2973.8,13.99930092]
[1752573648235,5.108,2973.9,2973.8,14.80160092]
[1752573648453,0.002,2973.9,2973.8,15.35160092]
[1752573648861,5.108,2973.9,2973.8,15.35160092]
[1752573649234,0.002,2973.9,2973.8,15.35160092]
[1752573650822,0.002,2973.9,2973.8,13.53070092]
[1752573651063,0.4623,2973.9,2973.8,13.53070092]
[1752573651262,1.2749,2973.9,2973.8,0.168]
[1752573651463,1.2749,2973.9,2973.8,10.168]
[1752573652744,1.2749,2973.9,2973.8,13.53070092]
[1752573653466,1.2749,2973.9,2973.8,0.168]
[1752573655026,1.2749,2973.9,2973.5,0.001]
[1752573655249,0.6283,2973.8,2973.5,0.001]
[1752573655536,4.33692709,2973.6,2973.5,0.001]
[1752573656043,4.79722709,2973.6,2973.5,0.001]
[1752573657476,9.90422709,2973.6,2973.5,0.001]
[1752573659880,4.79722709,2973.6,2973.5,0.001]
[1752573660037,9.90322709,2973.6,2973.5,0.001]
[1752573663094,4.79722709,2973.6,2973.5,0.001]
[1752573663268,9.90422709,2973.6,2973.5,0.001]
[1752573668318,4.79722709,2973.6,2973.5,0.001]
[1752573668506,9.90422709,2973.6,2973.5,0.001]
[1752573668794,5.275,2973.6,2973.5,0.001]
[1752573668966,5.107,2973.6,2973.5,0.001]
[1752573669365,5.112,2973.6,2973.5,0.474]
[1752573669596,5.112,2973.6,2973.5,0.642]
[1752573669805,5.112,2973.6,2973.5,4.0049688]
[1752573671136,0.002,2973.7,2973.6,3.36292709]
[1752573671431,5.113,2973.7,2973.6,3.83592709]
[1752573671770,5.113,2973.7,2973.6,13.83592709]
[1752573672171,5.113,2973.7,2973.5,3.5319688]
[1752573672172,5.113,2973.7,2973.5,0.169]
[1752573672410,5.113,2973.7,2973.5,0.001]
[1752573672572,5.5665,2973.7,2973.5,0.001]
[1752573672772,0.4535,2973.6,2973.5,0.001]
[1752573673199,5.113,2973.7,2973.5,0.001]
[1752573673621,3.81642709,2973.6,2973.5,0.001]
[1752573673969,0.4535,2973.6,2973.5,0.001]
[1752573674175,0.168,2973.6,2973.5,0.001]
[1752573674476,5.282,2973.6,2973.5,0.001]
[1752573674698,0.168,2973.6,2973.5,0.001]
[1752573674902,5.115,2973.6,2973.5,4.00504018]
[1752573676721,5.115,2973.6,2973.5,0.169]
[1752573677434,0.002,2973.7,2973.5,0.169]
[1752573677632,5.116,2973.6,2973.5,0.169]
[1752573677991,5.116,2973.6,2973.5,3.53204018]
[1752573678370,5.116,2973.6,2973.5,0.169]
[1752573678838,0.002,2973.7,2973.5,0.169]
[1752573679144,5.115,2973.6,2973.5,0.169]
[1752573679326,5.115,2973.6,2973.5,3.53204018]
[1752573680141,5.115,2973.6,2973.5,4.00499625]
[1752573680142,5.114,2973.6,2973.5,4.00499625]
[1752573680636,0.002,2973.7,2973.6,3.36292709]
[1752573680850,0.002,2973.7,2973.6,3.83592709]
[1752573681063,5.115,2973.7,2973.6,3.83592709]
[1752573681333,5.115,2973.7,2973.6,4.00392709]
[1752573681817,0.002,2973.7,2973.6,4.00392709]
[1752573682134,5.114,2973.7,2973.6,4.00392709]
[1752573682735,5.114,2973.7,2973.6,0.168]
[1752573683816,6.3732,2973.7,2973.5,0.001]
[1752573684017,0.4535,2973.6,2973.5,0.001]
[1752573684555,3.98442709,2973.6,2973.5,0.001]
[1752573685358,3.53092709,2973.6,2973.5,0.001]
[1752573685518,3.98442709,2973.6,2973.5,0.001]
[1752573688057,0.6215,2973.6,2973.5,0.001]
[1752573688359,0.002,2973.7,2973.5,0.001]
[1752573688535,0.002,2973.7,2973.6,3.36292709]
[1752573688737,5.116,2973.7,2973.6,3.83592709]
[1752573689124,5.116,2973.7,2973.5,0.001]
[1752573689348,5.116,2973.7,2973.5,3.3639572]
[1752573689734,5.116,2973.7,2973.5,0.001]
[1752573690073,4.62832709,2973.6,2973.5,0.001]
[1752573692363,4.61662709,2973.6,2973.5,0.001]
[1752573697358,5.33450637,2973.6,2973.5,0.001]
[1752573697567,4.61662709,2973.6,2973.5,0.001]
[1752573701049,5.51303512,2973.6,2973.5,0.001]
[1752573701306,5.51303512,2973.6,2973.5,1e-08]
[1752573701852,15.51303512,2973.6,2973.5,1e-08]
[1752573702052,15.33450637,2973.6,2973.5,1e-08]
[1752573703189,16.23107567,2973.6,2973.5,1e-08]
[1752573703386,15.88450637,2973.6,2973.5,1e-08]
[1752573703610,17.08578946,2973.6,2973.5,1e-08]
[1752573705382,17.39690957,2973.6,2973.5,1e-08]
[1752573707240,17.08578946,2973.6,2973.5,1e-08]
[1752573707430,17.39686503,2973.6,2973.5,1e-08]
[1752573708205,17.08578946,2973.6,2973.5,1e-08]
[1752573708827,30.02478946,2973.6,2973.5,1e-08]
[1752573710794,30.02378946,2973.6,2973.5,1e-08]
[1752573710996,36.54746636,2973.6,2973.5,1e-08]
[1752573715517,36.54946636,2973.6,2973.5,1e-08]
[1752573715717,36.54868809,2973.6,2973.5,1e-08]
[1752573717952,35.347405,2973.6,2973.5,1e-08]
[1752573718316,35.348405,2973.6,2973.5,1e-08]
[1752573718657,4.8660281,2973.6,2973.5,1e-08]
[1752573718815,8.47392709,2973.6,2973.5,1e-08]
[1752573719158,0.002,2973.6,2973.5,0.43410001]
[1752573719352,8.47392709,2973.6,2973.5,1.18850001]
[1752573720640,8.47392709,2973.6,2973.5,1e-08]
[1752573720841,15.43210399,2973.6,2973.5,1e-08]
[1752573721043,17.0476231,2973.6,2973.5,1e-08]
[1752573721860,27.0476231,2973.6,2973.5,1e-08]
[1752573722219,26.15011248,2973.6,2973.5,1e-08]
[1752573722824,19.19193558,2973.6,2973.5,1e-08]
[1752573724056,19.62643558,2973.6,2973.5,1e-08]
[1752573728150,20.82236365,2973.6,2973.5,1e-08]
[1752573729179,15.27886365,2973.6,2973.5,1e-08]
[1752573729363,20.38786365,2973.6,2973.5,1e-08]
[1752573730352,15.27886365,2973.6,2973.5,1e-08]
[1752573730551,20.38786365,2973.6,2973.5,1e-08]
[1752573731373,10.38786365,2973.6,2973.5,1e-08]
[1752573731573,9.19193558,2973.6,2973.5,1e-08]
[1752573733879,4.08293558,2973.6,2973.5,1e-08]
[1752573734082,4.26432096,2973.6,2973.5,0.44630001]
[1752573734302,8.47292709,2973.6,2973.5,0.44630001]
[1752573735307,3.36492709,2973.6,2973.5,0.44630001]
[1752573735500,8.47292709,2973.6,2973.5,0.44630001]
[1752573736606,3.36492709,2973.6,2973.5,0.44630001]
[1752573736754,5.11,2973.6,2973.5,1.25850001]
[1752573736955,8.47292709,2973.6,2973.5,1.25850001]
[1752573737589,3.36492709,2973.6,2973.5,1.25850001]
[1752573737890,8.47292709,2973.6,2973.5,1.25850001]
[1752573738966,5.11,2973.6,2973.5,1.25850001]
[1752573739494,0.002,2973.6,2973.5,1.25850001]
[1752573739688,5.11,2973.6,2973.5,1.25850001]
[1752573741287,0.002,2973.6,2973.5,1.25850001]
[1752573741493,5.11,2973.6,2973.5,1.25850001]
[1752573742192,0.002,2973.6,2973.5,1.25850001]
[1752573742393,5.11,2973.6,2973.5,1.25850001]
[1752573742589,5.174,2973.6,2973.5,1.25850001]
[1752573742793,8.53692709,2973.6,2973.5,1.25850001]
[1752573743473,5.174,2973.6,2973.5,1.25850001]
[1752573743981,8.53692709,2973.6,2973.5,1.25850001]
[1752573746872,5.174,2973.6,2973.5,1.25850001]
[1752573748263,5.173,2973.6,2973.5,1.25850001]
[1752573748685,0.066,2973.6,2973.5,1.25850001]
[1752573748888,0.066,2973.6,2973.5,4.62154019]
[1752573749379,5.173,2973.6,2973.5,14.62154019]
[1752573749561,5.173,2973.6,2973.5,14.78954019]
[1752573762439,0.066,2973.6,2973.5,14.78954019]
[1752573762600,5.172,2973.6,2973.5,14.78954019]
[1752573763192,5.172,2973.6,2973.5,11.42650001]
[1752573763394,5.172,2973.6,2973.5,14.78954019]
[1752573764934,5.172,2973.6,2973.5,21.308661]
[1752573765403,0.066,2973.6,2973.5,21.308661]
[1752573765742,5.172,2973.6,2973.5,21.308661]
[1752573767368,0.066,2973.6,2973.5,21.308661]
[1752573767532,5.172,2973.6,2973.5,21.308661]
[1752573769654,0.066,2973.6,2973.5,21.858661]
[1752573776761,0.002,2973.9,2973.8,14.69010092]
[1752573776914,1e-08,2973.9,2973.8,26.31422173]
[1752573777110,1e-08,2973.9,2973.8,26.93412173]
[1752573777410,1e-08,2973.9,2973.8,20.41500092]
[1752573778652,1e-08,2973.9,2973.8,14.30810092]
[1752573778828,1e-08,2973.9,2973.8,13.36270092]
[1752573779361,1e-08,2973.9,2973.8,13.81460092]
[1752573779657,1e-08,2973.9,2973.8,20.88372173]
[1752573779826,1e-08,2973.9,2973.8,21.87412173]
[1752573780147,1e-08,2973.9,2973.8,26.97912173]
[1752573780552,0.002,2974.2,2974.1,3.91236172]
[1752573780752,0.002,2974.2,2974.1,21.25020614]
[1752573780952,0.002,2974.2,2974.1,21.83168253]
[1752573784968,0.002,2974.2,2974.1,22.08209626]
[1752573786451,0.002,2974.2,2974.1,10.168]
[1752573786876,0.002,2974.2,2974.1,10.718]
[1752573787053,0.002,2974.2,2974.1,14.08036172]
[1752573787372,0.002,2974.2,2974.1,10.718]
[1752573787670,0.002,2974.2,2974.1,14.08036172]
[1752573788376,0.002,2974.2,2974.1,10.718]
[1752573789273,0.4323,2974.2,2974.1,10.0]
[1752573789478,0.002,2974.2,2974.1,10.0]
[1752573789641,0.002,2974.2,2974.1,13.36236172]
[1752573789968,0.002,2974.2,2974.1,10.0]
[1752573790170,0.002,2974.2,2974.1,13.36236172]
[1752573790370,0.002,2974.2,2974.1,10.0]
[1752573791675,3.79454867,2974.2,2974.1,10.0]
[1752573791861,3.96254867,2974.2,2974.1,10.0]
[1752573792560,0.6003,2974.2,2974.1,10.0]
[1752573793060,0.6003,2974.2,2973.8,3.36264047]
[1752573793268,0.4303,2974.1,2973.7,3.53076924]
[1752573793652,0.4303,2974.1,2973.9,3.36257135]
[1752573794466,0.4303,2974.1,2973.8,3.36261764]
[1752573795485,0.17,2974.2,2973.9,3.36257515]
[1752573795786,5.104,2974.1,2973.9,3.36257515]
[1752573797786,5.104,2974.1,2973.9,3.80967515]
[1752573798278,0.17,2974.2,2973.9,3.80967515]
[1752573798480,5.104,2974.1,2973.9,3.80967515]
[1752573800679,5.5343,2974.1,2973.7,3.53079264]
[1752573800883,0.4303,2974.0,2973.7,0.168]
[1752573801083,0.4303,2974.0,2973.7,14.08080842]
[1752573801885,0.4303,2974.0,2973.9,0.001]
[1752573802187,5.5343,2974.0,2973.9,0.001]
[1752573805689,6.3612,2974.0,2973.9,0.001]
[1752573807392,0.002,2974.1,2973.9,0.001]
[1752573807584,5.104,2974.0,2973.9,0.001]
[1752573808361,5.5343,2974.0,2973.9,0.001]
[1752573809474,5.104,2974.0,2973.9,0.001]
[1752573810195,5.5732,2974.0,2973.9,0.001]
[1752573816307,5.104,2974.0,2973.9,0.001]
[1752573818818,0.002,2974.1,2973.9,0.001]
[1752573818971,5.104,2974.0,2973.9,3.8096941]
[1752573819177,5.104,2974.0,2973.9,10.49681491]
[1752573820809,0.002,2974.1,2973.9,10.49681491]
[1752573821110,5.104,2974.0,2973.9,10.49681491]
[1752573821329,0.002,2974.1,2974.0,3.36247478]
[1752573821473,0.002,2974.1,2974.0,3.39609952]
[1752573821678,5.106,2974.1,2974.0,3.80867478]
[1752573823026,5.106,2974.1,2973.9,10.05062465]
[1752573823606,5.106,2974.1,2974.0,3.36247478]
[1752573824479,0.002,2974.1,2974.0,3.36247478]
[1752573824800,5.105,2974.1,2974.0,3.36247478]
[1752573825186,0.002,2974.1,2974.0,3.36247478]
[1752573825391,5.105,2974.1,2974.0,15.19889952]
[1752573825700,5.105,2974.1,2974.0,15.33327478]
[1752573826512,0.002,2974.1,2974.0,15.33327478]
[1752573826936,5.105,2974.1,2974.0,15.33327478]
[1752573827816,0.002,2974.1,2974.0,15.33327478]
[1752573841711,0.002,2974.1,2974.0,14.08047478]
[1752573842741,0.4701,2974.1,2974.0,14.08047478]
[1752573843442,0.002,2974.1,2974.0,14.08047478]
[1752573843812,0.002,2974.1,2974.0,13.53047478]
[1752573844216,0.4701,2974.1,2974.0,13.53047478]
[1752573846849,0.002,2974.1,2974.0,13.53047478]
[1752573849347,0.002,2974.1,2974.0,10.168]
[1752573849551,0.002,2974.1,2974.0,13.53047478]
[1752573850758,0.4701,2974.1,2974.0,13.53047478]
[1752573852765,0.002,2974.1,2974.0,13.53047478]
[1752573853650,5.103,2974.1,2974.0,14.54397478]
[1752573853967,0.002,2974.1,2974.0,15.31757478]
[1752573854664,0.002,2974.8,2974.7,3.36168353]
[1752573854825,5.103,2974.8,2974.7,9.88080434]
[1752573855025,5.103,2974.8,2974.7,10.04880434]
[1752573855764,0.002,2974.8,2974.7,20.59880434]
[1752573855933,0.002,2975.1,2974.9,3.36145081]
[1752573856145,0.002,2975.1,2975.0,20.46407878]
[1752573856321,0.002,2975.1,2975.0,20.43046534]
[1752573856668,0.002,2975.1,2975.0,13.52934453]
[1752573857268,0.002,2975.1,2974.9,3.36143554]
[1752573857426,0.4681,2975.0,2974.8,20.04865703]
[1752573857633,0.8219,2975.1,2974.9,10.0]
[1752573857954,5.101,2975.0,2974.8,10.168]
[1752573858349,0.4681,2974.9,2974.8,10.168]
[1752573860068,0.4681,2974.9,2974.4,3.36202052]
[1752573860069,3.99760488,2974.9,2974.4,0.168]
[1752573860267,3.99760488,2974.9,2974.4,10.168]